bitfinex/quotes_BTCUSD_20240712
["timestamp","ask_amount","ask_price","bid_price","bid_amount"]
[1720802310393,0.36328648,58369.0,58368.0,0.171326]
[1720802310734,0.1,58369.0,58368.0,0.856632]
[1720802310883,0.1,58369.0,58368.0,1.199285]
[1720802312119,0.1,58369.0,58368.0,1.564938]
[1720802312432,0.1,58369.0,58368.0,1.222285]
[1720802312685,0.3,58369.0,58368.0,1.222285]
[1720802313306,0.2,58369.0,58368.0,1.222285]
[1720802313509,0.3,58369.0,58368.0,1.222285]
[1720802315192,0.1,58370.0,58369.0,1.541911]
[1720802315393,0.00083,58373.0,58372.0,0.513945]
[1720802315659,0.00083,58373.0,58372.0,1.261205]
[1720802315869,0.10083,58373.0,58372.0,1.284205]
[1720802316244,0.00083,58373.0,58372.0,1.703035]
[1720802316674,0.00083,58373.0,58372.0,1.71583458]
[1720802319281,0.26411648,58373.0,58372.0,1.71583458]
[1720802319478,0.26411648,58373.0,58372.0,1.65383458]
[1720802319697,0.36382813,58373.0,58372.0,0.52674458]
[1720802320108,0.00083,58373.0,58372.0,0.86937458]
[1720802320323,0.00083,58373.0,58372.0,1.21200458]
[1720802320520,0.26411648,58373.0,58372.0,0.86937458]
[1720802320677,0.30052813,58373.0,58372.0,0.86937458]
[1720802320881,0.26411648,58373.0,58372.0,0.86937458]
[1720802321716,0.36411648,58373.0,58372.0,0.01279958]
[1720802321937,0.50141648,58373.0,58372.0,0.01279958]
[1720802322154,0.36328648,58363.0,58362.0,0.988232]
[1720802322400,0.36328648,58363.0,58362.0,1.33092]
[1720802323023,0.36328648,58363.0,58362.0,0.988232]
[1720802323309,0.36328648,58363.0,58362.0,0.4742]
[1720802323508,0.39961513,58363.0,58362.0,0.988232]
[1720802323737,0.39961513,58363.0,58362.0,1.33092]
[1720802323942,0.36328648,58363.0,58362.0,1.33092]
[1720802324521,0.36328648,58363.0,58362.0,0.988232]
[1720802324730,0.36328648,58363.0,58362.0,0.4742]
[1720802324933,0.42478648,58363.0,58362.0,0.4742]
[1720802325332,0.42478648,58363.0,58349.0,0.01044452]
[1720802325333,0.2,58350.0,58349.0,0.01044452]
[1720802325552,0.2,58350.0,58349.0,0.514144]
[1720802325756,0.2,58350.0,58349.0,0.856909]
[1720802325985,0.2,58350.0,58346.0,0.000913]
[1720802325986,0.1,58353.0,58352.0,0.856867]
[1720802326205,0.1,58353.0,58352.0,1.199614]
[1720802326372,0.10306353,58355.0,58354.0,0.856837]
[1720802326576,0.30306353,58355.0,58354.0,0.856837]
[1720802326753,0.36328648,58355.0,58354.0,0.856837]
[1720802328673,0.36328648,58355.0,58354.0,0.342735]
[1720802328910,0.36328648,58355.0,58354.0,0.856837]
[1720802329317,0.36328648,58355.0,58354.0,0.514102]
[1720802330055,0.36328648,58347.0,58346.0,0.000913]
[1720802331695,0.36328648,58347.0,58346.0,0.01478246]
[1720802331892,0.1,58347.0,58346.0,0.000913]
[1720802332109,1.45915248,58347.0,58346.0,0.000913]
[1720802332314,2.01132648,58347.0,58346.0,0.000913]
[1720802332523,2.37738619,58347.0,58346.0,0.000913]
[1720802333361,2.03461019,58347.0,58346.0,0.000913]
[1720802333952,2.37738619,58347.0,58346.0,0.000913]
[1720802334151,2.54762359,58347.0,58346.0,0.000913]
[1720802334377,2.89039959,58347.0,58346.0,0.000913]
[1720802334592,2.54762359,58347.0,58346.0,0.000913]
[1720802334793,2.03461019,58347.0,58346.0,0.000913]
[1720802335038,2.37714525,58347.0,58346.0,0.000913]
[1720802335660,2.03436925,58347.0,58346.0,0.000913]
[1720802335918,0.99438648,58347.0,58346.0,0.000913]
[1720802336126,0.81418648,58347.0,58346.0,0.000913]
[1720802336335,0.67917448,58347.0,58346.0,0.000913]
[1720802336543,0.50778648,58347.0,58346.0,0.000913]
[1720802336733,0.65530497,58347.0,58346.0,0.000913]
[1720802337067,0.50778648,58347.0,58346.0,0.000913]
[1720802338107,0.50778648,58347.0,58346.0,0.0138947]
[1720802338313,1.20215048,58347.0,58346.0,0.000913]
[1720802338699,1.26215048,58347.0,58346.0,0.000913]
[1720802338902,1.02961188,58347.0,58346.0,0.000913]
[1720802339685,0.85822388,58347.0,58346.0,0.000913]
[1720802339887,0.42758648,58347.0,58346.0,0.172304]
[1720802340138,0.42758648,58347.0,58346.0,0.000913]
[1720802340346,0.42758648,58347.0,58346.0,0.0138947]
[1720802340548,0.60778648,58347.0,58346.0,0.000913]
[1720802340782,0.42758648,58347.0,58346.0,0.000913]
[1720802340987,0.36328648,58347.0,58346.0,0.172304]
[1720802341244,0.36328648,58347.0,58346.0,0.0138947]
[1720802341654,0.54348648,58347.0,58346.0,0.000913]
[1720802341782,0.36328648,58347.0,58346.0,0.172304]
[1720802341983,0.36328648,58347.0,58346.0,0.1852857]
[1720802342183,0.36328648,58347.0,58346.0,0.5280677]
[1720802342589,0.3,58347.0,58346.0,1.2136317]
[1720802342806,0.3,58349.0,58347.0,0.342776]
[1720802343008,0.00306353,58360.0,58351.0,0.342753]
[1720802343009,0.1,58352.0,58351.0,0.342753]
[1720802343335,0.3,58355.0,58354.0,0.514102]
[1720802343566,0.3,58355.0,58354.0,1.199572]
[1720802343722,0.3,58355.0,58354.0,1.21254212]
[1720802343921,0.442,58355.0,58354.0,0.01297012]
[1720802344269,0.1,58347.0,58346.0,0.000913]
[1720802344476,0.36328648,58347.0,58346.0,0.172304]
[1720802344643,0.36328648,58347.0,58346.0,0.18528005]
[1720802344820,0.36328648,58347.0,58346.0,0.52806205]
[1720802345245,0.36328648,58347.0,58346.0,0.18528005]
[1720802345449,0.36328648,58347.0,58346.0,0.01388905]
[1720802345450,0.39961513,58347.0,58346.0,0.01388905]
[1720802345851,0.39961513,58347.0,58346.0,0.000913]
[1720802346453,0.48583091,58347.0,58346.0,0.000913]
[1720802347017,0.656476,58347.0,58346.0,0.000913]
[1720802347243,0.999252,58347.0,58346.0,0.000913]
[1720802347438,0.656476,58347.0,58346.0,0.000913]
[1720802348083,0.425088,58347.0,58346.0,0.000913]
[1720802348300,0.38875935,58347.0,58346.0,0.000913]
[1720802348740,0.38875935,58347.0,58346.0,0.01388905]
[1720802348935,0.38875935,58347.0,58346.0,0.000913]
[1720802349283,0.38875935,58347.0,58346.0,0.01388905]
[1720802349483,0.38875935,58347.0,58346.0,0.000913]
[1720802349757,0.38875935,58347.0,58346.0,0.01388905]
[1720802350002,0.42763529,58347.0,58346.0,0.000913]
[1720802350208,0.36328648,58347.0,58346.0,0.01388905]
[1720802350412,1.35780448,58341.0,58340.0,0.001]
[1720802350588,1.69710629,58341.0,58340.0,0.001]
[1720802350824,2.55275867,58341.0,58340.0,0.001]
[1720802351233,2.22947219,58341.0,58340.0,0.001]
[1720802351455,2.55275867,58341.0,58340.0,0.001]
[1720802352401,1.90522848,58340.0,58339.0,0.0117614]
[1720802352600,1.21773848,58337.0,58336.0,0.0059045]
[1720802352953,2.14050127,58337.0,58336.0,0.0059045]
[1720802353243,2.14032482,58337.0,58336.0,0.0059045]
[1720802353634,1.70024648,58332.0,58327.0,0.009108]
[1720802353847,1.11784548,58325.0,58315.0,0.01714171]
[1720802354063,1.93004163,58325.0,58315.0,0.01714171]
[1720802354236,1.56076648,58324.0,58315.0,0.01714171]
[1720802354434,0.59476548,58316.0,58315.0,0.01714171]
[1720802354615,1.15080863,58316.0,58315.0,0.01714171]
[1720802354825,1.21080863,58316.0,58315.0,0.01714171]
[1720802355083,1.15080863,58316.0,58315.0,0.01714171]
[1720802355252,0.97808703,58316.0,58315.0,0.01714171]
[1720802355453,0.80660803,58316.0,58315.0,0.01714171]
[1720802355852,0.97808703,58316.0,58315.0,0.01714171]
[1720802356055,0.63637063,58316.0,58315.0,0.01714171]
[1720802356257,0.63637063,58316.0,58315.0,0.18862371]
[1720802356258,0.36328648,58316.0,58315.0,0.18862371]
[1720802356466,0.1,58316.0,58315.0,0.88901425]
[1720802356671,0.2,58318.0,58316.0,0.171479]
[1720802356672,0.1,58317.0,58316.0,0.171479]
[1720802356966,0.3,58317.0,58316.0,0.514438]
[1720802357164,0.36328648,58317.0,58316.0,0.01447327]
[1720802357392,0.1,58317.0,58316.0,0.35743227]
[1720802357617,0.1,58317.0,58316.0,0.857397]
[1720802357809,0.1,58317.0,58316.0,0.87191259]
[1720802358662,0.1,58319.0,58316.0,0.35747459]
[1720802358888,0.1,58319.0,58318.0,0.857367]
[1720802359273,0.36328648,58317.0,58316.0,0.01714684]
[1720802359677,0.87771548,58317.0,58316.0,0.01714684]
[1720802359875,1.24671955,58317.0,58316.0,0.01714684]
[1720802360276,0.90376655,58317.0,58316.0,0.01714684]
[1720802360475,0.96376655,58317.0,58316.0,0.01714684]
[1720802360692,1.13400395,58317.0,58316.0,0.01714684]
[1720802360970,1.47695695,58317.0,58316.0,0.01714684]
[1720802361368,1.75990995,58317.0,58316.0,0.01714684]
[1720802361577,1.47695695,58317.0,58316.0,0.01714684]
[1720802362434,1.81990995,58317.0,58316.0,0.01714684]
[1720802362739,1.65715695,58317.0,58316.0,0.01714684]
[1720802362893,2.00057543,58317.0,58316.0,0.01714684]
[1720802363075,2.00057522,58317.0,58316.0,0.01714684]
[1720802363281,2.10057522,58317.0,58316.0,0.01714684]
[1720802363480,2.16627522,58317.0,58316.0,0.01714684]
[1720802364944,1.82332222,58317.0,58316.0,0.01714684]
[1720802365371,1.76332222,58317.0,58316.0,0.01714684]
[1720802365594,1.32036922,58317.0,58316.0,0.01714684]
[1720802365809,1.14016922,58317.0,58316.0,0.01714684]
[1720802366027,1.45660588,58317.0,58316.0,0.01714684]
[1720802366254,1.48356185,58317.0,58316.0,0.01714684]
[1720802366709,1.14060885,58317.0,58316.0,0.01714684]
[1720802367610,0.79765585,58317.0,58316.0,0.01714684]
[1720802367786,0.36328648,58317.0,58316.0,0.01714684]
[1720802368223,0.36328648,58317.0,58316.0,0.03065211]
[1720802368435,0.3,58317.0,58316.0,0.20213111]
[1720802368641,0.3,58317.0,58316.0,0.88804911]
[1720802368853,0.36328648,58317.0,58316.0,0.88804911]
[1720802369250,0.3,58317.0,58316.0,0.88804911]
[1720802369378,0.1,58317.0,58316.0,0.88804911]
[1720802369587,0.3,58317.0,58316.0,0.54509011]
[1720802369818,0.1,58317.0,58316.0,1.23100811]
[1720802370510,0.3,58317.0,58316.0,1.23100811]
[1720802370981,0.1,58317.0,58316.0,1.23100811]
[1720802371395,0.3,58317.0,58316.0,0.88804911]
[1720802371598,0.31,58317.0,58316.0,0.88804911]
[1720802371798,0.3,58317.0,58316.0,0.88804911]
[1720802372199,0.36328648,58317.0,58316.0,0.54509011]
[1720802372604,0.36328648,58317.0,58316.0,0.03065211]
[1720802373174,0.53476248,58317.0,58316.0,0.03065211]
[1720802373372,0.97781593,58317.0,58316.0,0.03065211]
[1720802373569,0.63486293,58317.0,58316.0,0.01714684]
[1720802373780,0.46338693,58317.0,58316.0,0.01714684]
[1720802374180,0.66161147,58317.0,58316.0,0.01714684]
[1720802374386,1.00456447,58317.0,58316.0,0.01714684]
[1720802374684,0.39003502,58317.0,58316.0,0.01714684]
[1720802375086,0.39036623,58317.0,58316.0,0.01714684]
[1720802375303,0.56184223,58317.0,58316.0,0.01714684]
[1720802375748,0.56210974,58317.0,58316.0,0.01714684]
[1720802376357,0.39063374,58317.0,58316.0,0.01714684]
[1720802376651,0.56210974,58317.0,58316.0,0.01714684]
[1720802376850,1.24801574,58317.0,58316.0,0.01714684]
[1720802377056,1.30801574,58317.0,58316.0,0.01714684]
[1720802377395,1.47825314,58317.0,58316.0,0.01714684]
[1720802377557,2.10140614,58317.0,58316.0,0.01714684]
[1720802378743,2.34840614,58317.0,58316.0,0.01714684]
[1720802378938,2.48700614,58317.0,58316.0,0.01714684]
[1720802379174,2.55314614,58317.0,58316.0,0.01714684]
[1720802379577,2.5531484,58317.0,58316.0,0.01714684]
[1720802380563,3.12295724,58317.0,58316.0,0.01714684]
[1720802380940,2.92295724,58317.0,58316.0,0.01714684]
[1720802381471,2.40976684,58317.0,58316.0,0.01714684]
[1720802382016,2.31627732,58317.0,58316.0,0.01714684]
[1720802382220,2.40986261,58317.0,58316.0,0.01714684]
[1720802382947,2.06690961,58317.0,58316.0,0.01714684]
[1720802383365,2.40986261,58317.0,58316.0,0.01714684]
[1720802383647,2.23714701,58317.0,58316.0,0.01714684]
[1720802384511,2.58010001,58317.0,58316.0,0.01714684]
[1720802384687,2.23714701,58317.0,58316.0,0.01714684]
[1720802385508,2.23763065,58317.0,58316.0,0.01714684]
[1720802385887,2.13763065,58317.0,58316.0,0.01714684]
[1720802386087,2.23763065,58317.0,58316.0,0.01714684]
[1720802386349,2.58058365,58317.0,58316.0,0.01714684]
[1720802387339,2.78058365,58317.0,58316.0,0.01714684]
[1720802388198,2.78058365,58317.0,58311.0,0.002]
[1720802388199,2.44690548,58312.0,58311.0,0.002]
[1720802388355,2.70653025,58312.0,58311.0,0.002]
[1720802388788,0.72328648,58307.0,58306.0,0.0060768]
[1720802388952,0.59481848,58298.0,58297.0,0.009119]
[1720802389154,1.30523959,58298.0,58297.0,0.009119]
[1720802389362,1.74830359,58298.0,58297.0,0.009119]
[1720802389569,1.64830359,58298.0,58297.0,0.009119]
[1720802389761,1.70960359,58298.0,58297.0,0.009119]
[1720802389961,1.87984099,58298.0,58297.0,0.009119]
[1720802390166,2.50310499,58298.0,58297.0,0.009119]
[1720802391911,2.5747735,58298.0,58297.0,0.009119]
[1720802392124,2.57494376,58298.0,58297.0,0.009119]
[1720802392330,1.900966,58296.0,58294.0,0.009108]
[1720802392533,2.02124836,58296.0,58294.0,0.009108]
[1720802392942,2.70472436,58296.0,58294.0,0.009108]
[1720802393175,1.86425501,58295.0,58294.0,0.009108]
[1720802393380,1.86425501,58295.0,58292.0,0.009119]
[1720802393381,1.90431548,58293.0,58292.0,0.009119]
[1720802393587,2.36440536,58293.0,58292.0,0.009119]
[1720802393779,2.61560005,58293.0,58292.0,0.009119]
[1720802393933,2.64119154,58293.0,58292.0,0.009119]
[1720802394178,2.19154876,58293.0,58292.0,0.009119]
[1720802394332,2.02131136,58293.0,58292.0,0.009119]
[1720802394528,1.96131136,58293.0,58292.0,0.009119]
[1720802394929,2.02131136,58293.0,58292.0,0.009119]
[1720802395228,1.96271765,58293.0,58292.0,0.009119]
[1720802395463,1.61962365,58293.0,58292.0,0.009119]
[1720802395635,1.5541039,58293.0,58292.0,0.009119]
[1720802395868,1.7243413,58293.0,58292.0,0.009119]
[1720802396352,0.38931306,58293.0,58292.0,0.009119]
[1720802398412,0.38999585,58293.0,58292.0,0.009119]
[1720802399050,0.56154285,58293.0,58292.0,0.009119]
[1720802399254,0.90463685,58293.0,58292.0,0.009119]
[1720802399459,0.38999585,58293.0,58292.0,0.009119]
[1720802400290,0.38999585,58293.0,58292.0,0.27136618]
[1720802400724,0.38999585,58293.0,58292.0,0.02271618]
[1720802400725,0.36328648,58293.0,58292.0,0.02271618]
[1720802400917,0.3893705,58293.0,58292.0,0.02271618]
[1720802401144,0.36328648,58293.0,58292.0,0.009119]
[1720802401345,0.38892983,58293.0,58292.0,0.009119]
[1720802401526,0.36328648,58293.0,58292.0,0.02271618]
[1720802401751,0.38892959,58293.0,58292.0,0.02271618]
[1720802402405,0.38892959,58293.0,58292.0,0.19426618]
[1720802402603,0.38892959,58293.0,58292.0,0.53736618]
[1720802402604,0.32564311,58293.0,58292.0,0.53736618]
[1720802402838,0.32564311,58293.0,58292.0,0.19426618]
[1720802402839,0.38892959,58293.0,58292.0,0.19426618]
[1720802403010,0.38892959,58293.0,58292.0,0.02271618]
[1720802403210,0.4281289,58293.0,58292.0,0.02271618]
[1720802403613,0.4281289,58293.0,58292.0,0.009119]
[1720802403800,0.38892959,58293.0,58292.0,0.009119]
[1720802404012,0.38892959,58293.0,58292.0,0.53736618]
[1720802404013,0.38941903,58293.0,58292.0,0.53736618]
[1720802404431,0.38941719,58293.0,58292.0,0.19426618]
[1720802404627,0.38941719,58293.0,58292.0,0.02271618]
[1720802405230,0.38941719,58293.0,58292.0,0.53736618]
[1720802405231,0.32613071,58293.0,58292.0,0.53736618]
[1720802405477,0.12613071,58293.0,58292.0,0.88046618]
[1720802405696,0.12613071,58293.0,58292.0,0.53736618]
[1720802405697,0.38941719,58293.0,58292.0,0.53736618]
[1720802406319,0.38941719,58293.0,58292.0,1.36186618]
[1720802406320,0.32613071,58293.0,58292.0,1.36186618]
[1720802406523,0.32613071,58293.0,58292.0,1.01876618]
[1720802406731,0.38941719,58293.0,58292.0,1.01876618]
[1720802407078,0.36328648,58293.0,58292.0,1.01876618]
[1720802407280,0.36328648,58293.0,58292.0,1.36186618]
[1720802407281,0.3,58293.0,58292.0,1.36186618]
[1720802407463,0.32586155,58293.0,58292.0,1.01876618]
[1720802407655,0.32586155,58293.0,58292.0,1.36186618]
[1720802407861,0.12586155,58293.0,58292.0,1.36186618]
[1720802408057,0.32586155,58293.0,58292.0,1.36186618]
[1720802408261,0.12586155,58293.0,58292.0,1.36186618]
[1720802408464,0.1,58293.0,58292.0,1.36186618]
[1720802408671,0.1,58294.0,58293.0,0.857735]
[1720802409091,0.1,58299.0,58298.0,1.200724]
[1720802409339,0.3,58299.0,58298.0,1.344424]
[1720802409515,0.3,58299.0,58298.0,1.35799551]
[1720802409917,0.3,58299.0,58298.0,1.01493151]
[1720802410118,0.36328648,58299.0,58298.0,1.01493151]
[1720802410318,0.3,58299.0,58298.0,1.01493151]
[1720802410518,0.38952188,58299.0,58298.0,1.01493151]
[1720802410994,0.38952188,58299.0,58298.0,0.67186751]
[1720802411138,0.42847407,58299.0,58298.0,0.67186751]
[1720802411557,0.42847407,58299.0,58298.0,0.26350351]
[1720802411971,0.42847407,58299.0,58298.0,0.87123151]
[1720802412148,0.3262354,58299.0,58298.0,0.87123151]
[1720802413020,0.1262354,58299.0,58298.0,1.21429551]
[1720802413598,0.1,58299.0,58298.0,1.29429551]
[1720802413839,0.1,58299.0,58298.0,1.01703151]
[1720802413840,0.12600572,58299.0,58298.0,1.01703151]
[1720802414079,0.12600359,58299.0,58298.0,1.01703151]
[1720802414286,0.12600359,58299.0,58298.0,1.36009551]
[1720802414486,0.1,58299.0,58298.0,1.36009551]
[1720802415507,0.1,58304.0,58303.0,0.171517]
[1720802415706,0.12768671,58304.0,58303.0,0.857587]
[1720802415860,0.12768671,58304.0,58303.0,1.21464864]
[1720802416471,0.1,58304.0,58303.0,1.21464864]
[1720802416816,0.12765922,58304.0,58303.0,1.21464864]
[1720802417041,0.3909457,58304.0,58303.0,0.87161364]
[1720802417790,0.3909457,58304.0,58303.0,0.01402664]
[1720802417991,0.3909457,58304.0,58303.0,0.18554364]
[1720802418165,0.3909457,58304.0,58303.0,0.171517]
[1720802418484,0.43034662,58304.0,58303.0,0.01447836]
[1720802418916,0.36328648,58302.0,58301.0,0.171522]
[1720802419118,0.39001383,58302.0,58301.0,0.171522]
[1720802419345,0.43295531,58302.0,58301.0,0.171522]
[1720802419710,0.43295531,58302.0,58301.0,0.514569]
[1720802419911,0.43295531,58302.0,58301.0,0.171522]
[1720802420126,0.43287314,58302.0,58301.0,0.171522]
[1720802420298,0.36328648,58299.0,58298.0,0.34306]
[1720802420499,0.38993166,58299.0,58298.0,0.514592]
[1720802420678,0.38993166,58299.0,58298.0,0.857656]
[1720802420881,0.38993166,58299.0,58296.0,0.171537]
[1720802421089,0.171512,58305.0,58294.0,0.343088]
[1720802421090,0.26328648,58295.0,58294.0,0.343088]
[1720802421506,0.26328648,58295.0,58294.0,0.514632]
[1720802421783,0.26328648,58295.0,58294.0,0.52912697]
[1720802424218,0.29047888,58295.0,58294.0,0.52912697]
[1720802424639,0.32952677,58295.0,58294.0,0.52912697]
[1720802424842,0.42952677,58295.0,58294.0,0.01449497]
[1720802425026,0.42952677,58295.0,58292.0,0.009119]
[1720802425027,0.66406777,58295.0,58292.0,0.009119]
[1720802425225,0.36328648,58293.0,58292.0,0.009119]
[1720802425473,0.39047888,58293.0,58292.0,0.009119]
[1720802426401,0.38971082,58293.0,58292.0,0.009119]
[1720802426712,0.38971086,58293.0,58292.0,0.009119]
[1720802427667,1.02159089,58293.0,58292.0,0.009119]
[1720802427862,1.14049914,58293.0,58292.0,0.009119]
[1720802428065,2.01621017,58293.0,58292.0,0.009119]
[1720802428290,2.18207303,58293.0,58292.0,0.009119]
[1720802428563,2.05375015,58293.0,58292.0,0.009119]
[1720802429835,2.05532963,58293.0,58292.0,0.009119]
[1720802431418,1.13890423,58293.0,58292.0,0.009119]
[1720802431572,1.76219823,58293.0,58292.0,0.009119]
[1720802431777,1.82219823,58293.0,58292.0,0.009119]
[1720802432000,2.10529223,58293.0,58292.0,0.009119]
[1720802432175,2.16529223,58293.0,58292.0,0.009119]
[1720802432383,2.27552963,58293.0,58292.0,0.009119]
[1720802432611,1.48199823,58293.0,58292.0,0.009119]
[1720802432744,1.82509223,58293.0,58292.0,0.009119]
[1720802432946,1.79117849,58293.0,58292.0,0.009119]
[1720802433145,1.82626683,58293.0,58292.0,0.009119]
[1720802433393,1.61148465,58293.0,58292.0,0.009119]
[1720802433712,1.65389615,58293.0,58292.0,0.009119]
[1720802434218,1.26887478,58293.0,58292.0,0.009119]
[1720802434436,0.48572375,58293.0,58292.0,0.009119]
[1720802434641,1.00036475,58293.0,58292.0,0.009119]
[1720802434846,1.34345875,58293.0,58292.0,0.009119]
[1720802435047,1.40345875,58293.0,58292.0,0.009119]
[1720802435251,1.57369615,58293.0,58292.0,0.009119]
[1720802435676,1.51369615,58293.0,58292.0,0.009119]
[1720802435829,2.05989015,58293.0,58292.0,0.009119]
[1720802436045,2.88318415,58293.0,58292.0,0.009119]
[1720802436249,2.68318415,58293.0,58292.0,0.009119]
[1720802436422,2.88318415,58293.0,58292.0,0.009119]
[1720802436833,3.32627815,58293.0,58292.0,0.009119]
[1720802437035,0.891561,58288.0,58287.0,0.009119]
[1720802437238,1.93610775,58288.0,58287.0,0.009119]
[1720802437469,0.36328648,58269.0,58268.0,0.4625329]
[1720802437669,0.36328648,58269.0,58238.0,0.00913]
[1720802437670,0.26328648,58263.0,58262.0,0.514912]
[1720802437822,0.39136943,58263.0,58262.0,0.514912]
[1720802438241,0.36328648,58261.0,58260.0,0.583732]
[1720802438440,0.39192728,58261.0,58260.0,0.171642]
[1720802438682,0.3286408,58261.0,58260.0,0.51493]
[1720802439281,0.36328648,58261.0,58260.0,0.51493]
[1720802441098,0.39961513,58261.0,58260.0,0.51493]
[1720802441303,0.36328648,58260.0,58259.0,0.7859]
[1720802441702,0.36328648,58260.0,58259.0,0.957547]
[1720802441875,0.36328648,58260.0,58259.0,0.7859]
[1720802442083,0.26328648,58258.0,58257.0,0.00913]
[1720802442289,0.36328648,58258.0,58257.0,0.00913]
[1720802442695,0.53493648,58258.0,58257.0,0.00913]
[1720802442871,0.96540523,58258.0,58257.0,0.00913]
[1720802443112,1.12523648,58258.0,58257.0,0.00913]
[1720802443273,1.30526026,58258.0,58257.0,0.00913]
[1720802443496,1.31848848,58252.0,58251.0,0.002]
[1720802443740,2.28160896,58252.0,58251.0,0.002]
[1720802443967,0.36328648,58248.0,58247.0,0.0060768]
[1720802444210,1.24885461,58248.0,58247.0,0.0060768]
[1720802444453,1.59221361,58248.0,58247.0,0.0060768]
[1720802444672,1.65221361,58248.0,58247.0,0.0060768]
[1720802445138,1.59221361,58248.0,58247.0,0.0060768]
[1720802445352,1.75633663,58248.0,58247.0,0.0060768]
[1720802445835,0.56130596,58248.0,58247.0,0.0060768]
[1720802446003,0.36328648,58248.0,58247.0,0.0060768]
[1720802447575,0.1,58248.0,58247.0,0.36677548]
[1720802447777,0.1,58248.0,58247.0,0.1777588]
[1720802447979,0.1,58248.0,58247.0,0.53845748]
[1720802448172,0.1,58248.0,58247.0,0.88182248]
[1720802449498,0.1,58253.0,58247.0,0.10852483]
[1720802449659,0.1,58248.0,58247.0,0.36677548]
[1720802449854,0.34325,58267.0,58247.0,0.36677548]
[1720802449855,0.1,58250.0,58249.0,0.515029]
[1720802450105,0.1,58250.0,58249.0,0.87573891]
[1720802450283,0.1,58250.0,58249.0,1.21909191]
[1720802450896,0.36328648,58250.0,58249.0,0.53238591]
[1720802451097,0.36328648,58250.0,58249.0,0.18903291]
[1720802451499,0.36328648,58250.0,58249.0,0.53238591]
[1720802452379,0.39961513,58250.0,58249.0,0.01735691]
[1720802452783,0.36328648,58248.0,58247.0,0.0069898]
[1720802453638,0.36328648,58248.0,58247.0,0.02292106]
[1720802453916,0.36328648,58248.0,58247.0,0.53796806]
[1720802454159,0.36328648,58248.0,58247.0,0.02292106]
[1720802454745,0.3,58248.0,58247.0,0.1786718]
[1720802454971,0.36328648,58248.0,58247.0,0.19460306]
[1720802455384,0.39961513,58248.0,58247.0,0.19460306]
[1720802455594,0.39961513,58248.0,58247.0,0.02292106]
[1720802455809,0.36328648,58248.0,58247.0,0.02292106]
[1720802456228,0.53496548,58248.0,58247.0,0.02292106]
[1720802456434,0.36328648,58248.0,58247.0,0.02292106]
[1720802456642,0.36328648,58248.0,58247.0,0.0069898]
[1720802457763,0.36328648,58248.0,58247.0,0.02292106]
[1720802457963,0.36328648,58248.0,58247.0,0.0069898]
[1720802458172,0.36328648,58248.0,58247.0,0.02292106]
[1720802458381,0.39961513,58248.0,58247.0,0.02292106]
[1720802458781,0.39961513,58248.0,58247.0,0.0069898]
[1720802458953,0.36328648,58248.0,58247.0,0.0069898]
[1720802459370,0.36328648,58248.0,58247.0,0.02292801]
[1720802460406,0.36328648,58248.0,58247.0,0.0069898]
[1720802460609,0.36328648,58248.0,58247.0,0.02292801]
[1720802460814,0.36328648,58248.0,58247.0,0.0069898]
[1720802461251,0.171674,58250.0,58249.0,0.515029]
[1720802461252,0.1,58250.0,58249.0,0.515029]
[1720802461455,0.1,58250.0,58249.0,0.94349635]
[1720802461627,0.1,58250.0,58249.0,1.30278431]
[1720802463589,0.1,58255.0,58253.0,1.029987]
[1720802463813,0.06328648,58264.0,58250.0,0.343345]
[1720802463814,0.1,58258.0,58250.0,0.343345]
[1720802464061,0.1,58258.0,58257.0,0.514959]
[1720802464285,0.1,58258.0,58257.0,0.858265]
[1720802464467,0.36328648,58258.0,58257.0,0.87418516]
[1720802464736,0.36328648,58258.0,58257.0,0.01592016]
[1720802464950,0.3,58258.0,58257.0,0.858265]
[1720802465174,0.1,58260.0,58259.0,0.314847]
[1720802465370,0.1,58262.0,58259.0,0.1432]
[1720802465581,0.1,58262.0,58261.0,0.514923]
[1720802466008,0.1,58262.0,58259.0,0.254545]
[1720802466009,0.36328648,58260.0,58259.0,0.254545]
[1720802466218,0.3,58260.0,58259.0,0.254545]
[1720802466422,0.1,58260.0,58259.0,1.284426]
[1720802466772,0.1,58260.0,58259.0,0.87414405]
[1720802467407,0.39961513,58260.0,58259.0,0.01591205]
[1720802467579,0.36328648,58260.0,58259.0,0.01591205]
[1720802467784,0.2,58254.0,58253.0,0.171664]
[1720802467981,0.2,58254.0,58253.0,0.858322]
[1720802469385,0.1,58259.0,58256.0,0.343311]
[1720802469585,0.1,58259.0,58258.0,0.51495]
[1720802469802,0.1,58260.0,58251.0,0.08511435]
[1720802470034,0.1,58260.0,58259.0,0.514941]
[1720802470236,0.1,58260.0,58259.0,0.858235]
[1720802470440,0.1,58260.0,58259.0,1.201529]
[1720802470868,0.0607,58275.0,58259.0,0.343294]
[1720802470869,0.1,58262.0,58259.0,0.343294]
[1720802471096,0.1,58266.0,58265.0,0.171629]
[1720802471305,0.1,58266.0,58265.0,0.858147]
[1720802471515,0.1,58266.0,58265.0,1.201406]
[1720802473611,0.39961513,58266.0,58265.0,0.858147]
[1720802473816,0.3,58266.0,58265.0,0.858147]
[1720802474044,0.1,58266.0,58265.0,0.858147]
[1720802474447,0.1,58267.0,58266.0,0.514879]
[1720802474663,0.1,58268.0,58267.0,0.171623]
[1720802474876,0.1,58268.0,58267.0,1.201364]
[1720802475214,0.1,58270.0,58269.0,0.858087]
[1720802478113,0.1,58270.0,58269.0,1.201322]
[1720802478870,0.36328648,58270.0,58269.0,1.201322]
[1720802479072,0.36328648,58270.0,58269.0,0.858087]
[1720802480021,0.1,58270.0,58269.0,0.858087]
[1720802481012,0.1,58270.0,58269.0,1.201322]
[1720802481183,0.1,58270.0,58269.0,0.858087]
[1720802481590,0.1,58270.0,58269.0,0.87396018]
[1720802481804,0.1,58270.0,58269.0,1.21719518]
[1720802482420,0.1,58270.0,58269.0,0.87396018]
[1720802482825,0.1,58270.0,58269.0,1.21719518]
[1720802484339,0.1,58270.0,58269.0,0.87396018]
[1720802484979,0.1,58270.0,58269.0,1.21719518]
[1720802485719,0.1,58270.0,58269.0,1.28598718]
[1720802485925,0.1,58270.0,58269.0,0.94275218]
[1720802486150,0.39961513,58270.0,58269.0,0.87396018]
[1720802486334,0.42648648,58270.0,58269.0,0.53072518]